bitfinex/quotes_SOLUSD_20240614
["timestamp","ask_amount","ask_price","bid_price","bid_amount"]
[1718339167488,6.16,147.74,147.72,0.51]
[1718339170001,22.6288,147.81,147.72,0.51]
[1718339170323,6.16,147.74,147.72,0.51]
[1718339171729,22.6288,147.81,147.72,0.51]
[1718339171904,22.6288,147.81,147.73,0.17]
[1718339172115,6.16,147.76,147.73,0.17]
[1718339172606,20.0,147.8,147.73,0.17]
[1718339172927,6.16,147.76,147.73,0.17]
[1718339174106,6.16,147.75,147.73,0.17]
[1718339174312,6.16,147.75,147.72,0.51]
[1718339175217,6.16,147.74,147.72,0.51]
[1718339176717,20.0,147.8,147.72,0.51]
[1718339176932,6.16,147.75,147.72,0.51]
[1718339177517,20.0,147.8,147.73,0.17]
[1718339178016,15.4503,147.85,147.73,0.17]
[1718339178223,44.64,147.84,147.73,8.8345]
[1718339178424,6.16,147.79,147.75,0.17]
[1718339179538,6.16,147.78,147.75,0.17]
[1718339179741,6.16,147.78,147.74,0.51]
[1718339179934,6.16,147.75,147.7,15.4937]
[1718339180137,6.16,147.77,147.7,15.4937]
[1718339180322,6.16,147.73,147.7,15.4937]
[1718339180522,24.64,147.77,147.7,15.4937]
[1718339181414,6.16,147.71,147.66,15.1817]
[1718339181616,6.16,147.7,147.66,15.1817]
[1718339182517,6.16,147.7,147.67,0.17]
[1718339182726,6.16,147.7,147.68,0.17]
[1718339182925,6.16,147.7,147.68,0.51]
[1718339183221,6.16,147.7,147.69,0.17]
[1718339183422,6.16,147.7,147.69,0.51]
[1718339184217,6.16,147.7,147.69,0.34]
[1718339184419,12.32,147.7,147.63,16.6013]
[1718339184722,6.16,147.67,147.63,16.6013]
[1718339185617,6.16,147.7,147.63,16.6013]
[1718339185814,16.1762,147.73,147.63,16.6013]
[1718339186035,6.16,147.68,147.63,16.6013]
[1718339186436,6.16,147.67,147.64,0.34]
[1718339187646,6.16,147.67,147.65,0.34]
[1718339188521,6.16,147.68,147.65,0.34]
[1718339190736,6.16,147.67,147.65,0.34]
[1718339190930,16.1762,147.73,147.65,0.34]
[1718339191244,6.16,147.67,147.65,0.34]
[1718339191430,16.1762,147.73,147.65,0.34]
[1718339191431,6.16,147.68,147.65,0.34]
[1718339191625,6.16,147.69,147.66,0.17]
[1718339194932,16.1762,147.73,147.66,0.17]
[1718339194933,6.16,147.68,147.66,0.17]
[1718339195254,6.16,147.68,147.65,0.34]
[1718339195571,6.16,147.68,147.66,0.17]
[1718339200882,6.16,147.67,147.66,0.17]
[1718339201060,6.16,147.67,147.65,0.34]
[1718339205659,6.16,147.7,147.65,0.34]
[1718339205660,6.16,147.66,147.65,0.34]
[1718339206661,6.16,147.66,147.65,0.17]
[1718339208575,6.16,147.66,147.6,15.2671]
[1718339208789,6.16,147.64,147.6,15.2671]
[1718339210048,6.16,147.64,147.61,0.68]
[1718339212147,6.16,147.64,147.61,0.51]
[1718339212655,16.3802,147.68,147.61,0.51]
[1718339212854,6.16,147.64,147.61,0.51]
[1718339213273,6.16,147.65,147.61,0.51]
[1718339213771,6.16,147.64,147.61,0.51]
[1718339215053,16.3802,147.68,147.61,0.51]
[1718339215254,6.16,147.65,147.61,0.51]
[1718339217775,6.16,147.64,147.61,0.51]
[1718339218778,16.3802,147.68,147.61,0.51]
[1718339219084,21.929,147.72,147.62,0.17]
[1718339219261,6.16,147.66,147.62,0.17]
[1718339227493,6.16,147.65,147.62,0.17]
[1718339229885,24.64,147.7,147.62,0.17]
[1718339230093,6.16,147.68,147.62,12.6715]
[1718339230295,6.16,147.68,147.64,0.17]
[1718339231573,6.16,147.67,147.64,0.17]
[1718339231777,6.16,147.65,147.64,0.17]
[1718339235892,6.16,147.66,147.64,0.17]
[1718339236869,6.16,147.7,147.63,0.51]
[1718339236870,6.16,147.65,147.63,0.51]
[1718339237094,6.16,147.64,147.63,0.51]
[1718339237599,6.16,147.65,147.63,0.51]
[1718339238379,6.16,147.64,147.63,0.17]
[1718339243501,6.16,147.66,147.63,0.34]
[1718339243708,6.16,147.66,147.64,0.34]
[1718339243882,6.16,147.66,147.65,0.17]
[1718339245422,6.16,147.66,147.64,0.34]
[1718339245423,6.16,147.66,147.64,0.17]
[1718339245592,24.64,147.7,147.59,25.4192]
[1718339245593,6.16,147.65,147.63,0.17]
[1718339246295,6.16,147.64,147.63,0.17]
[1718339253023,121.929,147.72,147.63,0.17]
[1718339253205,6.16,147.64,147.63,0.17]
[1718339253817,24.64,147.7,147.63,0.17]
[1718339254009,6.16,147.64,147.63,0.17]
[1718339256501,24.64,147.7,147.63,0.17]
[1718339256702,6.16,147.64,147.63,0.17]
[1718339257120,121.929,147.72,147.63,0.17]
[1718339257503,24.64,147.7,147.63,0.17]
[1718339257697,6.16,147.64,147.63,0.17]
[1718339258300,20.0,147.71,147.63,0.17]
[1718339258523,6.16,147.64,147.63,0.17]
[1718339259123,6.16,147.64,147.62,0.34]
[1718339259332,24.64,147.7,147.62,0.34]
[1718339259501,6.16,147.64,147.62,0.34]
[1718339259937,24.64,147.7,147.62,0.34]
[1718339260106,6.16,147.64,147.62,0.34]
[1718339260430,24.64,147.7,147.62,0.34]
[1718339260604,6.16,147.64,147.62,0.34]
[1718339261303,24.64,147.7,147.62,0.34]
[1718339261510,6.16,147.64,147.62,0.34]
[1718339261906,20.0,147.71,147.62,0.34]
[1718339262113,6.16,147.64,147.62,0.34]
[1718339262609,6.16,147.65,147.62,0.34]
[1718339264138,6.16,147.65,147.63,0.17]
[1718339264433,6.16,147.66,147.63,0.17]
[1718339265032,24.64,147.7,147.63,0.17]
[1718339265244,6.16,147.64,147.62,0.34]
[1718339265712,24.64,147.7,147.62,0.34]
[1718339265921,6.16,147.64,147.62,0.34]
[1718339267933,24.64,147.7,147.62,0.34]
[1718339268112,6.16,147.64,147.62,0.34]
[1718339269637,24.64,147.7,147.62,0.34]
[1718339269838,6.16,147.64,147.62,0.34]
[1718339271742,24.64,147.7,147.62,0.34]
[1718339272037,6.16,147.64,147.62,0.34]
[1718339272529,24.64,147.7,147.62,0.34]
[1718339272935,20.0,147.71,147.63,0.17]
[1718339273244,6.16,147.65,147.63,0.17]
[1718339276956,6.16,147.64,147.59,22.9124]
[1718339277119,24.64,147.7,147.59,22.9124]
[1718339277120,6.16,147.62,147.59,22.9124]
[1718339278468,6.16,147.62,147.6,0.34]
[1718339278647,6.16,147.62,147.61,0.34]
[1718339279019,124.64,147.7,147.61,0.34]
[1718339279317,6.16,147.62,147.61,0.34]
[1718339280724,124.64,147.7,147.61,0.34]
[1718339280931,6.16,147.62,147.61,0.34]
[1718339283667,20.0,147.69,147.61,0.34]
[1718339283832,6.02720953,147.62,147.61,0.34]
[1718339284034,20.0,147.69,147.61,0.34]
[1718339284370,6.16,147.63,147.61,0.34]
[1718339286360,20.0,147.69,147.61,0.34]
[1718339286656,6.16,147.63,147.61,0.34]
[1718339291737,20.0,147.69,147.61,0.34]
[1718339291942,6.16,147.65,147.62,0.17]
[1718339292358,6.16,147.64,147.62,0.17]
[1718339292544,20.0,147.69,147.62,0.17]
[1718339292746,6.16,147.64,147.62,0.17]
[1718339294066,20.0,147.69,147.62,0.34]
[1718339294369,6.16,147.65,147.62,0.34]
[1718339294567,6.16,147.65,147.63,0.34]
[1718339296553,20.0,147.69,147.63,0.34]
[1718339296968,6.16,147.65,147.63,0.34]
[1718339297460,6.16,147.64,147.63,0.17]
[1718339297770,6.16,147.64,147.58,0.17]
[1718339298069,6.16,147.63,147.6,0.17]
[1718339298247,6.16,147.63,147.6,0.68]
[1718339298452,6.16,147.63,147.6,0.51]
[1718339300069,15.1817,147.67,147.61,0.17]
[1718339300269,6.16,147.65,147.61,0.68]
[1718339300448,15.1817,147.67,147.61,0.68]
[1718339300648,6.16,147.65,147.61,0.68]
[1718339300850,15.1817,147.67,147.61,0.68]
[1718339301050,6.16,147.65,147.61,0.68]
[1718339301250,15.1817,147.67,147.61,0.68]
[1718339301569,20.0,147.69,147.61,0.68]
[1718339301778,21.4795,147.71,147.61,0.68]
[1718339301953,6.16,147.66,147.61,0.68]
[1718339302153,20.0,147.7,147.61,0.68]
[1718339302354,6.16,147.66,147.61,0.68]
[1718339302557,44.64,147.7,147.61,0.68]
[1718339302848,15.1883,147.71,147.63,0.17]
[1718339303053,6.091,147.74,147.63,6.84]
[1718339303280,6.16,147.68,147.63,6.84]
[1718339303760,6.091,147.74,147.63,6.84]
[1718339303959,6.16,147.68,147.63,6.84]
[1718339304555,6.091,147.74,147.63,0.68]
[1718339304857,6.16,147.68,147.63,0.68]
[1718339307067,15.59,147.75,147.64,6.0818]
[1718339307271,15.59,147.75,147.65,6.84]
[1718339307272,6.16,147.71,147.65,6.84]
[1718339308484,6.1176,147.77,147.67,0.17]
[1718339308699,6.16,147.72,147.67,6.84]
[1718339308865,6.16,147.72,147.67,22.8891]
[1718339309071,6.16,147.73,147.69,0.17]
[1718339309757,6.16,147.72,147.69,0.17]
[1718339310160,30.7576,147.77,147.69,0.17]
[1718339310370,6.16,147.72,147.69,0.17]
[1718339310882,30.7576,147.77,147.69,0.17]
[1718339311192,6.16,147.72,147.69,0.17]
[1718339317003,6.16,147.71,147.69,0.17]
[1718339318798,6.16,147.7,147.62,7.32457435]
[1718339319003,6.16,147.67,147.62,13.48457435]
[1718339319299,16.2421,147.74,147.63,23.8368]
[1718339319496,6.16,147.69,147.63,23.8368]
[1718339319906,6.16,147.69,147.63,17.6768]
[1718339320074,6.16,147.69,147.64,0.68]
[1718339321195,16.2421,147.74,147.64,9.3459]
[1718339321385,6.16,147.71,147.66,6.33]
[1718339321586,6.16,147.71,147.68,0.17]
[1718339321786,6.00624012,147.71,147.68,0.17]
[1718339322004,16.2421,147.74,147.68,0.17]
[1718339322202,6.16,147.71,147.68,0.17]
[1718339324285,16.2421,147.74,147.68,0.17]
[1718339324513,6.16,147.71,147.68,0.17]
[1718339324887,16.2421,147.74,147.68,0.17]
[1718339325205,6.16,147.72,147.68,0.17]
[1718339325409,6.16,147.75,147.68,16.3213]
[1718339325715,6.16,147.75,147.7,0.17]
[1718339326708,6.1176,147.77,147.7,0.17]
[1718339327017,16.3557,147.78,147.7,0.17]
[1718339327308,6.16,147.75,147.7,0.17]
[1718339328696,6.16,147.74,147.7,0.17]
[1718339328907,16.3557,147.78,147.7,0.17]
[1718339329113,6.16,147.74,147.7,0.17]
[1718339331114,16.3557,147.78,147.7,0.17]
[1718339331525,6.16,147.75,147.7,0.17]
[1718339331690,6.16,147.75,147.7,6.33]
[1718339331890,6.16,147.75,147.71,0.51]
[1718339332205,16.3557,147.78,147.72,0.17]
[1718339332417,6.16,147.75,147.72,0.17]
[1718339334224,6.5987,147.8,147.72,0.17]
[1718339334599,6.16,147.77,147.72,0.17]
[1718339335309,6.5987,147.8,147.72,0.17]
[1718339335517,6.16,147.77,147.72,0.17]
[1718339336315,6.5987,147.8,147.72,0.17]
[1718339336519,6.16,147.77,147.72,0.17]
[1718339337421,15.5725,147.81,147.72,0.17]
[1718339337601,6.16,147.77,147.72,0.17]
[1718339338014,15.5725,147.81,147.72,0.17]
[1718339338217,15.5725,147.81,147.72,6.33]
[1718339338549,6.16,147.79,147.74,0.17]
[1718339340920,6.16,147.78,147.74,0.17]
[1718339342729,6.16,147.75,147.69,21.8288]
[1718339342899,6.16,147.73,147.69,24.334]
[1718339343104,16.4925,147.81,147.69,24.334]
[1718339343105,6.16,147.75,147.69,30.494]
[1718339343494,16.4925,147.81,147.71,6.16]
[1718339343495,6.16,147.77,147.71,6.16]
[1718339343717,6.16,147.77,147.69,24.3339]
[1718339343917,6.16,147.76,147.7,6.16]
[1718339344118,6.16,147.75,147.69,27.9888]
[1718339344424,6.16,147.75,147.7,0.17]
[1718339344623,6.16,147.75,147.7,0.51]
[1718339344830,6.16,147.75,147.71,0.17]
[1718339344996,6.16,147.75,147.72,0.17]
[1718339345199,6.16,147.74,147.72,0.17]
[1718339345418,6.16,147.74,147.72,0.34]
[1718339347122,16.4925,147.81,147.72,0.34]
[1718339347326,6.16,147.74,147.72,0.34]
[1718339347725,16.4925,147.81,147.72,0.34]
[1718339348032,6.16,147.74,147.72,0.34]
[1718339348533,20.0,147.8,147.72,0.34]
[1718339348716,6.16,147.74,147.72,0.34]
[1718339349534,20.0,147.8,147.72,0.17]
[1718339349831,6.16,147.74,147.7,0.17]
[1718339350040,6.16,147.74,147.7,0.68]
[1718339350450,20.0,147.8,147.7,0.68]
[1718339350737,6.16,147.74,147.7,0.68]
[1718339352248,24.64,147.77,147.7,0.68]
[1718339352610,20.0,147.8,147.7,0.68]
[1718339352611,6.16,147.75,147.7,0.68]
[1718339353329,20.0,147.8,147.7,0.68]
[1718339353637,6.16,147.76,147.7,9.345]
[1718339355510,6.16,147.76,147.7,6.84]
[1718339356627,6.16,147.75,147.7,0.68]
[1718339357214,20.0,147.8,147.7,0.68]
[1718339357422,6.16,147.75,147.7,0.68]
[1718339358741,6.16,147.76,147.7,3.185]
[1718339358920,6.16,147.77,147.71,6.16]
[1718339359115,6.16,147.77,147.72,0.68]
[1718339360413,6.16,147.76,147.72,0.68]
[1718339360755,20.0,147.8,147.72,0.68]
[1718339360923,6.16,147.76,147.72,0.68]
[1718339361117,0.33333334,147.79,147.72,0.68]
[1718339361313,20.0,147.8,147.72,0.68]
[1718339361515,6.16,147.75,147.72,0.68]
[1718339361918,0.33333334,147.74,147.72,0.68]
[1718339368624,0.33333334,147.74,147.72,0.51]
[1718339368850,6.49333334,147.74,147.72,0.51]
[1718339371164,6.49333334,147.74,147.69,21.8288]
[1718339371357,6.49333334,147.74,147.7,0.51]
[1718339387153,6.16,147.73,147.7,0.51]
[1718339389669,6.16,147.72,147.7,0.17]
[1718339389961,16.6053,147.76,147.68,0.17]
[1718339389962,6.16,147.71,147.69,0.17]
[1718339390163,6.16,147.71,147.69,0.34]
[1718339395449,6.16,147.7,147.69,0.17]
[1718339395957,16.6053,147.76,147.69,0.17]
[1718339396154,6.16,147.71,147.68,0.51]
[1718339397765,6.0642,147.78,147.69,2.6751]
[1718339398051,24.64,147.77,147.7,0.51]
[1718339398269,6.16,147.73,147.7,0.51]
[1718339400398,6.0642,147.78,147.7,0.51]
[1718339400566,6.16,147.74,147.7,0.51]
[1718339403255,24.64,147.77,147.7,0.51]
[1718339403459,6.16,147.72,147.7,0.34]
[1718339403760,6.16,147.71,147.7,0.17]
[1718339405185,6.16,147.71,147.66,8.6656]
[1718339405382,6.16,147.71,147.65,22.9922]
[1718339405557,24.64,147.77,147.65,25.498]
[1718339405558,6.16,147.7,147.65,25.498]
[1718339406577,6.16,147.7,147.66,0.51]
[1718339406774,6.16,147.7,147.67,0.17]
[1718339411377,6.16,147.7,147.66,0.51]
[1718339412686,6.16,147.69,147.66,0.51]
[1718339414360,6.16,147.67,147.61,24.3353]
[1718339414569,6.16,147.7,147.61,30.4953]
[1718339414865,6.16,147.66,147.61,21.8289]
[1718339415312,6.16,147.65,147.61,15.507]
[1718339415774,16.6615,147.7,147.61,15.507]
[1718339415963,6.16,147.65,147.61,15.507]
[1718339416494,6.16,147.65,147.62,0.34]
[1718339416679,6.16,147.65,147.62,0.68]
[1718339416983,22.8542,147.73,147.65,2.6758]
[1718339417184,6.16,147.71,147.66,0.51]
[1718339417491,6.16,147.7,147.66,0.51]
[1718339417894,22.8542,147.73,147.66,0.17]
[1718339418191,6.16,147.67,147.63,0.17]
[1718339418396,6.16,147.67,147.63,0.68]
[1718339418979,6.16,147.67,147.63,3.1862]
[1718339419691,6.16,147.68,147.63,3.1862]
[1718339419984,22.8542,147.73,147.63,3.1862]
[1718339420166,6.16,147.69,147.65,0.17]
[1718339420372,6.16,147.7,147.65,0.51]
[1718339420601,6.16,147.7,147.66,0.17]
[1718339421402,6.16,147.71,147.66,0.17]
[1718339422295,6.16,147.71,147.66,1.16739229]
[1718339422596,6.16,147.71,147.67,0.17]
[1718339422776,6.16,147.71,147.67,0.34]
[1718339423097,22.7589,147.77,147.69,0.17]
[1718339423271,6.16,147.74,147.69,0.34]
[1718339423471,6.16,147.74,147.7,0.34]
[1718339423687,6.16,147.75,147.71,0.17]
[1718339424443,6.5301,147.81,147.72,6.16]
[1718339424580,16.2288,147.82,147.75,6.16]
[1718339424766,6.16,147.81,147.76,0.68]
[1718339425695,6.16,147.8,147.76,0.68]
[1718339428578,16.2288,147.82,147.71,17.8605]
[1718339428579,6.16,147.78,147.71,17.8605]
[1718339428791,6.16,147.77,147.72,6.33]
[1718339429182,6.16,147.76,147.71,21.5157]
[1718339429385,16.2288,147.82,147.71,15.3557]
[1718339429604,16.2288,147.82,147.71,24.0206]
[1718339429774,6.16,147.77,147.71,24.0206]
[1718339429978,6.16,147.78,147.72,6.16]
[1718339430502,6.16,147.78,147.73,0.34]
[1718339430700,6.16,147.78,147.73,0.68]
[1718339431292,16.2288,147.82,147.73,0.68]
[1718339431481,6.16,147.78,147.73,0.68]
[1718339432303,6.16,147.78,147.73,6.84]
[1718339434910,6.16,147.78,147.73,0.68]
[1718339435625,6.16,147.77,147.73,0.68]
[1718339436931,6.16,147.76,147.73,0.68]
[1718339438717,6.16,147.77,147.73,0.68]
[1718339439314,16.2288,147.82,147.73,0.68]
[1718339439623,6.16,147.77,147.73,0.68]
[1718339441243,16.2288,147.82,147.73,0.68]
[1718339441540,6.16,147.77,147.73,0.68]
[1718339442234,6.1696,147.81,147.73,0.17]
[1718339442439,6.16,147.74,147.69,2.5051]
[1718339442624,24.64,147.77,147.69,2.5051]
[1718339443623,24.64,147.77,147.7,0.34]
[1718339444616,24.64,147.77,147.71,0.17]
[1718339451239,24.64,147.77,147.7,0.34]
[1718339451634,6.16,147.71,147.69,0.17]
[1718339451935,6.16,147.7,147.68,15.0843]
[1718339452644,6.16,147.7,147.66,2.5056]
[1718339453178,6.16,147.7,147.67,2.8455]
[1718339453328,6.16,147.7,147.67,0.34]
[1718339456534,6.16,147.69,147.67,0.34]
[1718339456962,6.16,147.68,147.64,16.0548]
[1718339457153,6.16,147.7,147.6,22.0667]
[1718339457154,6.16,147.66,147.6,22.0667]
[1718339457656,6.16,147.66,147.62,2.5064]
[1718339458321,6.16,147.66,147.6,28.2267]
[1718339458322,6.16,147.65,147.61,2.5065]
[1718339458537,6.16,147.65,147.6,22.0667]
[1718339458938,6.16,147.65,147.6,24.5733]
[1718339459257,6.16,147.64,147.6,24.5733]
[1718339459422,6.16,147.64,147.61,2.5066]
[1718339459625,6.16,147.64,147.62,0.51]
[1718339460036,6.16,147.64,147.62,0.17]
[1718339460222,6.16,147.64,147.61,0.68]
[1718339460442,6.2202,147.73,147.64,2.5059]
[1718339460633,6.16,147.69,147.65,3.0159]
[1718339460820,6.16,147.69,147.65,0.51]
[1718339461022,6.16,147.67,147.63,2.6762]
[1718339461326,6.16,147.67,147.64,0.51]
[1718339461553,6.16,147.7,147.64,0.17]
[1718339461725,6.16,147.66,147.64,0.17]
[1718339462063,24.64,147.7,147.64,0.17]
[1718339462350,24.64,147.7,147.63,0.51]
[1718339465025,6.2202,147.73,147.63,0.51]
[1718339465260,6.16,147.68,147.64,2.506]
[1718339465546,6.16,147.68,147.65,0.17]
[1718339466142,6.16,147.68,147.64,0.17]
[1718339466721,6.16,147.67,147.64,0.17]
[1718339466921,6.16,147.66,147.64,0.17]
[1718339467258,6.16,147.7,147.64,0.17]
[1718339467259,6.16,147.65,147.64,0.17]
[1718339467545,24.64,147.7,147.64,0.17]
[1718339470927,6.16,147.67,147.64,2.8459]
[1718339471129,6.2202,147.73,147.65,0.34]
[1718339471364,16.0685,147.74,147.66,2.5057]
[1718339471528,6.16,147.69,147.67,0.17]
[1718339471971,6.16,147.7,147.67,0.17]
[1718339472481,6.16,147.7,147.67,0.51]
[1718339473769,6.16,147.69,147.67,0.51]
[1718339473950,6.16,147.68,147.63,0.17]
[1718339474150,6.16,147.67,147.61,8.6664]
[1718339474358,6.16,147.67,147.61,2.5064]
[1718339474557,6.16,147.67,147.61,8.6664]
[1718339474741,6.16,147.7,147.61,2.5064]
[1718339474947,6.16,147.66,147.61,2.5064]
[1718339475142,6.16,147.66,147.6,28.2267]
[1718339475359,6.16,147.66,147.6,24.5734]
[1718339475551,6.16,147.7,147.61,0.17]
[1718339475749,16.0685,147.74,147.63,2.5062]
[1718339475978,16.0685,147.74,147.66,2.5056]
[1718339476143,16.0685,147.74,147.67,0.17]
[1718339476144,6.16,147.7,147.67,0.17]
[1718339476538,16.0685,147.74,147.67,0.17]
[1718339476745,6.16,147.7,147.66,0.51]
[1718339478065,6.16,147.69,147.66,0.51]
[1718339478262,15.71052684,147.74,147.66,0.51]
[1718339478462,6.16,147.71,147.66,0.51]
[1718339479351,15.71052684,147.74,147.66,0.51]
[1718339479547,6.16,147.71,147.66,0.51]
[1718339480348,30.9537,147.77,147.67,0.17]
[1718339480546,30.9537,147.77,147.68,2.5054]
[1718339480547,6.16,147.73,147.68,2.5054]
[1718339480756,6.16,147.74,147.69,0.51]
[1718339481077,6.16,147.74,147.7,0.17]
[1718339482855,15.0521,147.8,147.7,0.17]
[1718339483074,6.16,147.74,147.7,0.17]
[1718339484171,6.16,147.73,147.69,0.51]
[1718339484377,6.16,147.72,147.69,0.51]
[1718339486176,24.64,147.77,147.7,0.17]
[1718339486478,6.16,147.74,147.7,16.0364]
[1718339486676,6.16,147.74,147.71,0.51]
[1718339490682,6.16,147.72,147.71,0.17]
[1718339491793,6.16,147.72,147.67,0.17]
[1718339491991,20.0,147.79,147.67,0.68]
[1718339492182,6.16,147.71,147.67,3.1855]
[1718339493186,6.16,147.72,147.67,3.1855]
[1718339495067,6.16,147.71,147.67,0.68]
[1718339495471,6.16,147.71,147.67,0.17]
[1718339495693,6.16,147.71,147.66,21.7066]
[1718339495876,6.16,147.71,147.66,24.2122]
[1718339497091,6.16,147.71,147.67,0.68]
[1718339500682,124.64,147.77,147.67,0.68]
[1718339500877,6.16,147.71,147.67,0.68]
[1718339503903,100.0,147.77,147.67,0.68]
[1718339504099,6.16,147.71,147.67,0.68]
[1718339504605,6.16,147.7,147.67,0.51]
[1718339516192,15.8373,147.75,147.67,0.51]
[1718339516507,6.16,147.72,147.68,2.5054]
[1718339516714,6.16,147.72,147.69,0.17]
[1718339517413,6.16,147.72,147.68,0.17]
[1718339523443,15.8373,147.75,147.66,15.6289]
[1718339523721,6.16,147.67,147.62,22.5903]
[1718339524818,15.8373,147.75,147.62,25.0967]
[1718339525009,6.16,147.67,147.63,0.68]
[1718339527111,6.16,147.67,147.63,3.1862]
[1718339528927,6.16,147.67,147.62,22.5903]
[1718339529227,6.16,147.64,147.62,16.4172]
[1718339533535,6.16,147.64,147.61,0.34]
[1718339534335,6.16,147.63,147.61,0.17]
[1718339535617,6.16,147.64,147.61,0.17]
[1718339536918,41.002,147.7,147.61,3.1865]
[1718339537114,6.16,147.66,147.61,3.1865]
[1718339537540,6.16,147.66,147.61,0.68]
[1718339537732,6.16,147.65,147.61,0.68]
[1718339539753,20.0,147.69,147.61,0.68]
[1718339540050,6.16,147.65,147.61,0.68]
[1718339540756,41.002,147.7,147.61,3.1865]
[1718339541052,6.16,147.69,147.64,0.17]
[1718339541217,6.16,147.68,147.64,0.68]
[1718339543945,16.2827,147.74,147.64,0.68]
[1718339544135,6.16,147.68,147.64,0.68]
[1718339544624,6.16,147.7,147.64,0.17]
[1718339544823,24.64,147.7,147.61,0.17]
[1718339545022,24.64,147.7,147.61,0.68]
[1718339545234,16.2827,147.74,147.63,0.17]
[1718339545449,6.16,147.68,147.63,0.68]
[1718339545657,20.0,147.73,147.63,0.68]
[1718339545857,6.16,147.68,147.63,0.68]
[1718339547131,20.0,147.73,147.63,0.34]
[1718339547445,24.64,147.7,147.63,0.34]
[1718339551972,6.1979,147.7,147.59,21.1688]
[1718339552265,20.0,147.69,147.59,21.1688]
[1718339552564,20.0,147.69,147.6,2.5067]
[1718339552752,6.16,147.66,147.6,8.6667]
[1718339553479,6.16,147.66,147.61,0.68]
[1718339556767,6.16,147.65,147.61,0.68]
[1718339557768,6.16,147.64,147.61,0.68]
[1718339564477,20.0,147.69,147.61,0.68]
[1718339564478,6.16,147.63,147.61,0.34]
[1718339564659,6.16,147.63,147.6,0.51]
[1718339565761,20.0,147.69,147.6,0.51]
[1718339565965,6.16,147.63,147.6,0.51]